[Event "*** SCC Grand Prix: Titled Tuesday Blitz"]
[Site "Chess.com"]
[Date "2020.10.13"]
[Round "2"]
[White "Artem_Sadovsky"]
[Black "German_Bazeev"]
[Result "1/2-1/2"]
[WhiteElo "2510"]
[BlackElo "2716"]
[TimeControl "180+1"]
[EndTime "10:17:24 PDT"]
[Termination "Game drawn by repetition"]

1. Nf3 {[%clk 0:02:42.1]} 1... Nf6 {[%clk 0:02:57.6]} 2. g3 {[%clk 0:02:41.4]}
2... g6 {[%clk 0:02:56.8]} 3. Bg2 {[%clk 0:02:42]} 3... Bg7 {[%clk 0:02:57.7]}
4. O-O {[%clk 0:02:42.3]} 4... O-O {[%clk 0:02:58.2]} 5. c4 {[%clk 0:02:42.7]}
5... d5 {[%clk 0:02:59.1]} 6. b3 {[%clk 0:02:42.9]} 6... d4 {[%clk 0:02:56.7]}
7. Bb2 {[%clk 0:02:42.4]} 7... c5 {[%clk 0:02:56.8]} 8. e3 {[%clk 0:02:43]} 8...
Nc6 {[%clk 0:02:57.3]} 9. exd4 {[%clk 0:02:43.3]} 9... Nh5 {[%clk 0:02:54.6]}
10. Na3 {[%clk 0:02:29.6]} 10... cxd4 {[%clk 0:02:00.2]} 11. d3 {[%clk
0:02:13.9]} 11... Re8 {[%clk 0:01:52.6]} 12. Nc2 {[%clk 0:02:06.4]} 12... e5
{[%clk 0:01:52.2]} 13. Nd2 {[%clk 0:02:06]} 13... Nf6 {[%clk 0:01:45]} 14. b4
{[%clk 0:01:53.8]} 14... Bf5 {[%clk 0:01:43.2]} 15. Nb3 {[%clk 0:01:37.8]} 15...
Qc8 {[%clk 0:01:11.7]} 16. b5 {[%clk 0:01:34.6]} 16... Nd8 {[%clk 0:01:11.4]}
17. Nb4 {[%clk 0:01:18]} 17... Bh3 {[%clk 0:01:08.8]} 18. Re1 {[%clk 0:01:08.4]}
18... Bxg2 {[%clk 0:01:08]} 19. Kxg2 {[%clk 0:01:09.3]} 19... Nd7 {[%clk
0:00:54.8]} 20. Nd5 {[%clk 0:01:05.9]} 20... Nb6 {[%clk 0:00:51.8]} 21. Nxb6
{[%clk 0:01:00.8]} 21... axb6 {[%clk 0:00:52.7]} 22. Bxd4 {[%clk 0:01:00.5]}
22... Ne6 {[%clk 0:00:51.2]} 23. Be3 {[%clk 0:00:46.9]} 23... h5 {[%clk
0:00:48.1]} 24. Qc2 {[%clk 0:00:40.6]} 24... h4 {[%clk 0:00:46.5]} 25. f3 {[%clk
0:00:28.1]} 25... h3+ {[%clk 0:00:44.3]} 26. Kh1 {[%clk 0:00:23.9]} 26... e4
{[%clk 0:00:36]} 27. fxe4 {[%clk 0:00:20.2]} 27... Bxa1 {[%clk 0:00:35.6]} 28.
Rxa1 {[%clk 0:00:21.1]} 28... Nc5 {[%clk 0:00:31.5]} 29. Nxc5 {[%clk 0:00:18.5]}
29... bxc5 {[%clk 0:00:32.4]} 30. Rf1 {[%clk 0:00:14.9]} 30... b6 {[%clk
0:00:29.4]} 31. Qf2 {[%clk 0:00:14.8]} 31... Qe6 {[%clk 0:00:29.4]} 32. Bg5
{[%clk 0:00:09.1]} 32... Ra7 {[%clk 0:00:24.4]} 33. Bf6 {[%clk 0:00:08.6]} 33...
Qg4 {[%clk 0:00:21.7]} 34. Qe3 {[%clk 0:00:08.3]} 34... Qh5 {[%clk 0:00:18.6]}
35. g4 {[%clk 0:00:08.4]} 35... Qxg4 {[%clk 0:00:17.9]} 36. Rg1 {[%clk
0:00:09.1]} 36... Qh5 {[%clk 0:00:17.8]} 37. Rg5 {[%clk 0:00:08.9]} 37... Qd1+
{[%clk 0:00:17.4]} 38. Rg1 {[%clk 0:00:09.7]} 38... Qh5 {[%clk 0:00:17]} 39. Rg5
{[%clk 0:00:10.2]} 39... Qd1+ {[%clk 0:00:16.9]} 40. Rg1 {[%clk 0:00:10.8]}
40... Qh5 {[%clk 0:00:14.4]} 1/2-1/2

[Event "*** SCC Grand Prix: Titled Tuesday Blitz"]
[Site "Chess.com"]
[Date "2020.10.13"]
[Round "2"]
[White "Pavalamalli"]
[Black "blitzking1729"]
[Result "0-1"]
[WhiteElo "2305"]
[BlackElo "2550"]
[TimeControl "180+1"]
[EndTime "10:17:24 PDT"]
[Termination "blitzking1729 won on time"]

1. e4 {[%clk 0:03:00.9]} 1... Nf6 {[%clk 0:02:57.1]} 2. Nc3 {[%clk 0:02:59.5]}
2... d5 {[%clk 0:02:48.1]} 3. e5 {[%clk 0:02:55.9]} 3... Nfd7 {[%clk 0:02:46.4]}
4. d4 {[%clk 0:02:51.6]} 4... e6 {[%clk 0:02:45.7]} 5. f4 {[%clk 0:02:48]} 5...
c5 {[%clk 0:02:43.2]} 6. Nf3 {[%clk 0:02:47.9]} 6... Nc6 {[%clk 0:02:43.2]} 7.
Be3 {[%clk 0:02:46.5]} 7... a6 {[%clk 0:02:40]} 8. Qd2 {[%clk 0:02:44.6]} 8...
b5 {[%clk 0:02:39.4]} 9. dxc5 {[%clk 0:02:43.3]} 9... Bxc5 {[%clk 0:02:38.4]}
10. Be2 {[%clk 0:02:38.5]} 10... Qb6 {[%clk 0:02:22.1]} 11. Nd1 {[%clk
0:02:23.6]} 11... f6 {[%clk 0:02:13]} 12. Bxc5 {[%clk 0:02:09.5]} 12... Qxc5
{[%clk 0:02:11.1]} 13. Nf2 {[%clk 0:01:46.8]} 13... fxe5 {[%clk 0:02:05.2]} 14.
Nxe5 {[%clk 0:01:44.6]} 14... Ndxe5 {[%clk 0:02:03.4]} 15. fxe5 {[%clk
0:01:43.5]} 15... Nxe5 {[%clk 0:02:01.4]} 16. Bh5+ {[%clk 0:01:27]} 16... g6
{[%clk 0:01:54.7]} 17. Qg5 {[%clk 0:01:17.3]} 17... O-O {[%clk 0:01:38.4]} 18.
O-O-O {[%clk 0:00:32]} 18... Qxf2 {[%clk 0:01:23.2]} 19. Qxe5 {[%clk 0:00:29.6]}
19... Rf5 {[%clk 0:00:41]} 20. Qc7 {[%clk 0:00:22.9]} 20... Qe3+ {[%clk
0:00:33.6]} 21. Kb1 {[%clk 0:00:21.8]} 21... gxh5 {[%clk 0:00:33.3]} 22. Rhe1
{[%clk 0:00:15.4]} 22... Qa7 {[%clk 0:00:30.7]} 23. Qd8+ {[%clk 0:00:14]} 23...
Rf8 {[%clk 0:00:29.2]} 24. Qg5+ {[%clk 0:00:13.7]} 24... Qg7 {[%clk 0:00:28.9]}
25. Qxh5 {[%clk 0:00:13.5]} 25... Bd7 {[%clk 0:00:28.3]} 26. Re3 {[%clk
0:00:12.5]} 26... Be8 {[%clk 0:00:27.6]} 27. Qh3 {[%clk 0:00:10.5]} 27... Bg6
{[%clk 0:00:23.3]} 28. Qxe6+ {[%clk 0:00:10.1]} 28... Kh8 {[%clk 0:00:23.7]} 29.
Qxd5 {[%clk 0:00:09.8]} 29... Rac8 {[%clk 0:00:23.2]} 30. Re2 {[%clk 0:00:06.4]}
30... Qc7 {[%clk 0:00:18.6]} 31. Rc1 {[%clk 0:00:04]} 31... Rfd8 {[%clk
0:00:17.1]} 32. Qb3 {[%clk 0:00:03.3]} 32... a5 {[%clk 0:00:16.2]} 33. a3 {[%clk
0:00:01.9]} 33... b4 {[%clk 0:00:15.2]} 34. axb4 {[%clk 0:00:01.1]} 34... axb4
{[%clk 0:00:15.2]} 0-1

[Event "*** SCC Grand Prix: Titled Tuesday Blitz"]
[Site "Chess.com"]
[Date "2020.10.13"]
[Round "2"]
[White "mapleaff"]
[Black "1977Ivan"]
[Result "0-1"]
[WhiteElo "2346"]
[BlackElo "2674"]
[TimeControl "180+1"]
[EndTime "10:17:25 PDT"]
[Termination "1977Ivan won on time"]

1. d4 {[%clk 0:03:00.9]} 1... Nf6 {[%clk 0:02:59.3]} 2. c4 {[%clk 0:03:01.2]}
2... e6 {[%clk 0:02:59.7]} 3. Nf3 {[%clk 0:03:00.1]} 3... d5 {[%clk 0:02:59.2]}
4. Nc3 {[%clk 0:03:00.4]} 4... Nbd7 {[%clk 0:02:56.7]} 5. cxd5 {[%clk
0:02:58.8]} 5... exd5 {[%clk 0:02:56.5]} 6. Bg5 {[%clk 0:02:58.8]} 6... c6
{[%clk 0:02:55.9]} 7. e3 {[%clk 0:02:58.7]} 7... Qa5 {[%clk 0:02:54.8]} 8. Bxf6
{[%clk 0:02:47.3]} 8... Nxf6 {[%clk 0:02:53.7]} 9. Bd3 {[%clk 0:02:45.6]} 9...
Bd6 {[%clk 0:02:42.4]} 10. h3 {[%clk 0:02:42.3]} 10... O-O {[%clk 0:02:42.5]}
11. O-O {[%clk 0:02:40.2]} 11... Re8 {[%clk 0:02:43]} 12. a3 {[%clk 0:02:37]}
12... Qd8 {[%clk 0:02:38.9]} 13. b4 {[%clk 0:02:36]} 13... a6 {[%clk 0:02:36.9]}
14. Qc2 {[%clk 0:02:31.9]} 14... g6 {[%clk 0:02:31.4]} 15. Rab1 {[%clk
0:02:29.4]} 15... Bd7 {[%clk 0:02:28.4]} 16. a4 {[%clk 0:02:22.9]} 16... b5
{[%clk 0:02:06.5]} 17. axb5 {[%clk 0:02:19.9]} 17... axb5 {[%clk 0:02:05.9]} 18.
Rfc1 {[%clk 0:02:05]} 18... Qe7 {[%clk 0:02:04.3]} 19. Qb3 {[%clk 0:02:02.8]}
19... Kg7 {[%clk 0:02:00.5]} 20. Ne1 {[%clk 0:01:50.2]} 20... h5 {[%clk
0:01:59.3]} 21. Bf1 {[%clk 0:01:49.5]} 21... Ne4 {[%clk 0:01:51.6]} 22. Nxe4
{[%clk 0:01:41.9]} 22... dxe4 {[%clk 0:01:52.5]} 23. d5 {[%clk 0:01:30.3]} 23...
Qe5 {[%clk 0:01:40.8]} 24. f4 {[%clk 0:01:21.3]} 24... exf3 {[%clk 0:01:28.9]}
25. Nxf3 {[%clk 0:01:20.5]} 25... Qg3 {[%clk 0:01:28.7]} 26. Qc3+ {[%clk
0:01:05.3]} 26... Kg8 {[%clk 0:01:26.9]} 27. dxc6 {[%clk 0:01:03]} 27... Bxh3
{[%clk 0:01:26.4]} 28. Qe1 {[%clk 0:00:59.3]} 28... Bf5 {[%clk 0:01:15.2]} 29.
Qxg3 {[%clk 0:00:53.2]} 29... Bxg3 {[%clk 0:01:16.1]} 30. Rb3 {[%clk 0:00:51.4]}
30... Ra2 {[%clk 0:01:12.5]} 31. Bxb5 {[%clk 0:00:31.5]} 31... Bf2+ {[%clk
0:00:56.6]} 32. Kh1 {[%clk 0:00:27.5]} 32... Rxe3 {[%clk 0:00:50.9]} 33. Rxe3
{[%clk 0:00:22.2]} 33... Bxe3 {[%clk 0:00:51.8]} 34. Re1 {[%clk 0:00:22.4]}
34... Bb6 {[%clk 0:00:47.9]} 35. Nh4 {[%clk 0:00:17.1]} 35... Bg4 {[%clk
0:00:41.2]} 36. Nf3 {[%clk 0:00:09]} 36... Kg7 {[%clk 0:00:39.1]} 37. Ne5 {[%clk
0:00:08.3]} 37... Bf5 {[%clk 0:00:37.8]} 38. Nd7 {[%clk 0:00:08.3]} 38... Bc7
{[%clk 0:00:36.9]} 39. Nc5 {[%clk 0:00:06.4]} 39... Rb2 {[%clk 0:00:32.8]} 40.
Na6 {[%clk 0:00:04.4]} 40... Bd6 {[%clk 0:00:31.5]} 41. c7 {[%clk 0:00:03.9]}
41... Rc2 {[%clk 0:00:28.6]} 0-1

[Event "*** SCC Grand Prix: Titled Tuesday Blitz"]
[Site "Chess.com"]
[Date "2020.10.13"]
[Round "2"]
[White "WiktoriaPOL"]
[Black "chessfrendz"]
[Result "0-1"]
[WhiteElo "2051"]
[BlackElo "2383"]
[TimeControl "180+1"]
[EndTime "10:17:26 PDT"]
[Termination "chessfrendz won by checkmate"]

1. c4 {[%clk 0:03:00.9]} 1... e5 {[%clk 0:02:57.1]} 2. Nc3 {[%clk 0:03:00.3]}
2... Nf6 {[%clk 0:02:56.2]} 3. Nf3 {[%clk 0:02:59.1]} 3... Nc6 {[%clk
0:02:55.2]} 4. e4 {[%clk 0:02:58]} 4... Bc5 {[%clk 0:02:51.6]} 5. Nxe5 {[%clk
0:02:56.9]} 5... Nxe5 {[%clk 0:02:42.6]} 6. d4 {[%clk 0:02:56.2]} 6... Bd6
{[%clk 0:02:41.3]} 7. c5 {[%clk 0:02:55.6]} 7... Bxc5 {[%clk 0:02:25.6]} 8. dxe5
{[%clk 0:02:51.3]} 8... Ng8 {[%clk 0:02:20.1]} 9. Qg4 {[%clk 0:02:50.4]} 9...
Kf8 {[%clk 0:02:16.5]} 10. Qf3 {[%clk 0:02:37.1]} 10... Qe7 {[%clk 0:01:46.6]}
11. Bc4 {[%clk 0:02:28.4]} 11... c6 {[%clk 0:01:27.7]} 12. Bg5 {[%clk
0:02:22.8]} 12... Qe8 {[%clk 0:01:25.3]} 13. O-O-O {[%clk 0:02:05.8]} 13... h6
{[%clk 0:01:15.8]} 14. Bh4 {[%clk 0:02:03.3]} 14... Ne7 {[%clk 0:01:14.2]} 15.
Rd2 {[%clk 0:01:48.7]} 15... Ng6 {[%clk 0:01:13.5]} 16. Bg3 {[%clk 0:01:47.9]}
16... b5 {[%clk 0:01:09]} 17. Bb3 {[%clk 0:01:46.9]} 17... Be7 {[%clk 0:01:05]}
18. Rhd1 {[%clk 0:01:45.1]} 18... Bg5 {[%clk 0:01:04.3]} 19. Kc2 {[%clk
0:01:33]} 19... Bxd2 {[%clk 0:01:03.8]} 20. Rxd2 {[%clk 0:01:33.1]} 20... h5
{[%clk 0:01:02.3]} 21. Rd6 {[%clk 0:01:31.8]} 21... h4 {[%clk 0:00:58.1]} 22.
Rxg6 {[%clk 0:01:25.1]} 22... hxg3 {[%clk 0:00:57.6]} 23. Rxg3 {[%clk
0:01:25.2]} 23... Rh6 {[%clk 0:00:56]} 24. Rg5 {[%clk 0:01:12.1]} 24... d6
{[%clk 0:00:53.7]} 25. exd6 {[%clk 0:01:09.1]} 25... Rxd6 {[%clk 0:00:48.2]} 26.
Rh5 {[%clk 0:00:43.1]} 26... Rh6 {[%clk 0:00:47.2]} 27. Rxh6 {[%clk 0:00:41.1]}
27... gxh6 {[%clk 0:00:46.7]} 28. Qf6 {[%clk 0:00:41.6]} 28... Be6 {[%clk
0:00:42.7]} 29. Qxh6+ {[%clk 0:00:40.7]} 29... Ke7 {[%clk 0:00:42.3]} 30. Bxe6
{[%clk 0:00:36.2]} 30... fxe6 {[%clk 0:00:41.8]} 31. Qg7+ {[%clk 0:00:35.3]}
31... Qf7 {[%clk 0:00:41.4]} 32. Qg5+ {[%clk 0:00:34.2]} 32... Qf6 {[%clk
0:00:41.1]} 33. Qc5+ {[%clk 0:00:32.4]} 33... Kd7 {[%clk 0:00:39.9]} 34. f3
{[%clk 0:00:30.5]} 34... Qe7 {[%clk 0:00:33.8]} 35. Qd4+ {[%clk 0:00:27.9]}
35... Kc7 {[%clk 0:00:33.7]} 36. Qe5+ {[%clk 0:00:27.3]} 36... Kb7 {[%clk
0:00:33.6]} 37. g4 {[%clk 0:00:24.5]} 37... Rd8 {[%clk 0:00:32.1]} 38. Qf4
{[%clk 0:00:07.4]} 38... Qd7 {[%clk 0:00:32]} 39. h4 {[%clk 0:00:06.7]} 39...
Qd3+ {[%clk 0:00:30.9]} 40. Kc1 {[%clk 0:00:06.9]} 40... b4 {[%clk 0:00:27.5]}
41. Na4 {[%clk 0:00:05.5]} 41... Qd1# {[%clk 0:00:27]} 0-1

[Event "*** SCC Grand Prix: Titled Tuesday Blitz"]
[Site "Chess.com"]
[Date "2020.10.13"]
[Round "2"]
[White "PLAYER_2006_M"]
[Black "MaxLeto"]
[Result "1-0"]
[WhiteElo "2549"]
[BlackElo "2303"]
[TimeControl "180+1"]
[EndTime "10:17:30 PDT"]
[Termination "PLAYER_2006_M won by resignation"]

1. d4 {[%clk 0:02:47.6]} 1... Nf6 {[%clk 0:02:59.4]} 2. Nc3 {[%clk 0:02:42.6]}
2... d5 {[%clk 0:02:58.5]} 3. Bf4 {[%clk 0:02:40.5]} 3... Bf5 {[%clk 0:02:56.2]}
4. f3 {[%clk 0:02:38.1]} 4... e6 {[%clk 0:02:55.2]} 5. g4 {[%clk 0:02:34.4]}
5... Bg6 {[%clk 0:02:53.2]} 6. h4 {[%clk 0:02:33.8]} 6... h5 {[%clk 0:02:48]} 7.
g5 {[%clk 0:02:32]} 7... Nfd7 {[%clk 0:02:45.9]} 8. e3 {[%clk 0:02:31.4]} 8...
Bd6 {[%clk 0:02:21.9]} 9. Nh3 {[%clk 0:02:29.4]} 9... Bf5 {[%clk 0:02:17.3]} 10.
Bxd6 {[%clk 0:02:26.4]} 10... cxd6 {[%clk 0:02:18.2]} 11. Nf4 {[%clk 0:02:26.5]}
11... g6 {[%clk 0:01:53.4]} 12. Be2 {[%clk 0:02:21.4]} 12... Qb6 {[%clk
0:01:35.3]} 13. e4 {[%clk 0:01:59.4]} 13... dxe4 {[%clk 0:01:32.5]} 14. fxe4
{[%clk 0:02:00.3]} 14... Bg4 {[%clk 0:01:32.4]} 15. Bxg4 {[%clk 0:01:57.9]}
15... hxg4 {[%clk 0:01:33.3]} 16. Qd2 {[%clk 0:01:53.1]} 16... Qxb2 {[%clk
0:01:22]} 17. Rb1 {[%clk 0:01:53.2]} 17... Qa3 {[%clk 0:01:21.9]} 18. Nb5 {[%clk
0:01:53.5]} 18... Qxa2 {[%clk 0:01:16.7]} 19. Nxd6+ {[%clk 0:01:44.5]} 19... Ke7
{[%clk 0:01:16.7]} 20. Rxb7 {[%clk 0:01:39.6]} 20... Qa6 {[%clk 0:00:26]} 21. e5
{[%clk 0:01:31]} 21... Nc6 {[%clk 0:00:23.6]} 22. Rf1 {[%clk 0:01:16.3]} 22...
Nd8 {[%clk 0:00:17.9]} 23. Qb4 {[%clk 0:01:09.4]} 23... Nxb7 {[%clk 0:00:13.3]}
24. Nxb7+ {[%clk 0:00:53.9]} 24... Ke8 {[%clk 0:00:10.2]} 25. Nd6+ {[%clk
0:00:50]} 25... Kd8 {[%clk 0:00:10.7]} 26. Nxf7+ {[%clk 0:00:48.1]} 26... Kc7
{[%clk 0:00:10.7]} 27. Nxh8 {[%clk 0:00:45.1]} 27... Rxh8 {[%clk 0:00:11.6]} 28.
Nxg6 {[%clk 0:00:32.7]} 28... Rb8 {[%clk 0:00:12.1]} 29. Qd6+ {[%clk 0:00:30.2]}
29... Qxd6 {[%clk 0:00:12.3]} 30. exd6+ {[%clk 0:00:31.1]} 30... Kxd6 {[%clk
0:00:13.2]} 31. Kd2 {[%clk 0:00:31.1]} 31... Rg8 {[%clk 0:00:11.7]} 32. h5
{[%clk 0:00:31.4]} 32... Nb6 {[%clk 0:00:09.5]} 33. Kd3 {[%clk 0:00:30.2]} 33...
Nd5 {[%clk 0:00:07.5]} 34. c4 {[%clk 0:00:30.1]} 34... Ne7 {[%clk 0:00:06.5]}
35. Nxe7 {[%clk 0:00:29.5]} 35... Kxe7 {[%clk 0:00:07.4]} 36. g6 {[%clk
0:00:30]} 36... Rh8 {[%clk 0:00:07.8]} 37. Rf7+ {[%clk 0:00:29.1]} 37... Ke8
{[%clk 0:00:07.8]} 38. Rh7 {[%clk 0:00:29.9]} 38... Rg8 {[%clk 0:00:07.3]} 39.
Ke4 {[%clk 0:00:28.1]} 39... a5 {[%clk 0:00:06.7]} 40. Ra7 {[%clk 0:00:26.2]}
1-0

[Event "*** SCC Grand Prix: Titled Tuesday Blitz"]
[Site "Chess.com"]
[Date "2020.10.13"]
[Round "2"]
[White "Castleqweenside7447"]
[Black "Matols"]
[Result "1/2-1/2"]
[WhiteElo "2448"]
[BlackElo "2251"]
[TimeControl "180+1"]
[EndTime "10:17:30 PDT"]
[Termination "Game drawn by repetition"]

1. e4 {[%clk 0:03:00.9]} 1... e6 {[%clk 0:02:59.9]} 2. d4 {[%clk 0:02:59.5]}
2... d5 {[%clk 0:03:00.1]} 3. exd5 {[%clk 0:02:58.9]} 3... exd5 {[%clk
0:02:59.8]} 4. Bd3 {[%clk 0:02:59.8]} 4... Bd6 {[%clk 0:02:57.4]} 5. Nf3 {[%clk
0:02:59.4]} 5... Ne7 {[%clk 0:02:56.6]} 6. Bg5 {[%clk 0:02:59.1]} 6... O-O
{[%clk 0:02:53.1]} 7. c3 {[%clk 0:02:58.5]} 7... Re8 {[%clk 0:02:52.7]} 8. O-O
{[%clk 0:02:57.2]} 8... h6 {[%clk 0:02:51.8]} 9. Bh4 {[%clk 0:02:56.9]} 9... Bg4
{[%clk 0:02:50.2]} 10. Nbd2 {[%clk 0:02:56.3]} 10... Nbc6 {[%clk 0:02:37.9]} 11.
Qb3 {[%clk 0:02:55.1]} 11... Rb8 {[%clk 0:02:32.9]} 12. Rae1 {[%clk 0:02:54.9]}
12... Qc8 {[%clk 0:02:21.3]} 13. Bxe7 {[%clk 0:02:46.2]} 13... Nxe7 {[%clk
0:02:19.6]} 14. Ne5 {[%clk 0:02:45.6]} 14... Bf5 {[%clk 0:02:13.3]} 15. Qc2
{[%clk 0:02:37.9]} 15... c6 {[%clk 0:02:07.5]} 16. Re2 {[%clk 0:02:28]} 16...
Bxd3 {[%clk 0:02:04.7]} 17. Qxd3 {[%clk 0:02:27.7]} 17... Qf5 {[%clk 0:02:04.3]}
18. Qxf5 {[%clk 0:02:23.4]} 18... Nxf5 {[%clk 0:02:03.9]} 19. Rfe1 {[%clk
0:02:24.3]} 19... f6 {[%clk 0:01:44.9]} 20. Nd3 {[%clk 0:02:23.2]} 20... Kf7
{[%clk 0:01:37.2]} 21. g3 {[%clk 0:02:22.6]} 21... Rxe2 {[%clk 0:01:32.2]} 22.
Rxe2 {[%clk 0:02:23.5]} 22... Re8 {[%clk 0:01:32.3]} 23. Kf1 {[%clk 0:02:23.8]}
23... Rxe2 {[%clk 0:01:30.3]} 24. Kxe2 {[%clk 0:02:24.7]} 24... Ke6 {[%clk
0:01:18.3]} 25. Nb3 {[%clk 0:02:24.3]} 25... b6 {[%clk 0:01:16.9]} 26. a4 {[%clk
0:02:23]} 26... g5 {[%clk 0:01:11.4]} 27. a5 {[%clk 0:02:22.1]} 27... Bc7 {[%clk
0:01:10]} 28. axb6 {[%clk 0:02:22]} 28... axb6 {[%clk 0:01:09.8]} 29. Nb4 {[%clk
0:02:20.9]} 29... Kd7 {[%clk 0:01:04.3]} 30. Nd3 {[%clk 0:02:20.4]} 30... Nd6
{[%clk 0:01:03.1]} 31. Nd2 {[%clk 0:02:19]} 31... c5 {[%clk 0:00:55.1]} 32. dxc5
{[%clk 0:02:18.5]} 32... bxc5 {[%clk 0:00:54.1]} 33. Nxc5+ {[%clk 0:02:18.7]}
33... Kc6 {[%clk 0:00:53]} 34. Nd3 {[%clk 0:02:19.6]} 34... Bb6 {[%clk
0:00:49.2]} 35. f3 {[%clk 0:02:10.2]} 35... Kb5 {[%clk 0:00:40.7]} 36. b3 {[%clk
0:01:49.1]} 36... Ba5 {[%clk 0:00:33.6]} 37. c4+ {[%clk 0:01:48.9]} 37... dxc4
{[%clk 0:00:31.1]} 38. bxc4+ {[%clk 0:01:49.8]} 38... Nxc4 {[%clk 0:00:28.4]}
39. Ne4 {[%clk 0:01:50.5]} 39... Bd8 {[%clk 0:00:25.1]} 40. g4 {[%clk
0:01:45.7]} 40... Kc6 {[%clk 0:00:21.4]} 41. Ng3 {[%clk 0:01:44.5]} 41... Nd6
{[%clk 0:00:19.1]} 42. Nf2 {[%clk 0:01:42.7]} 42... Kd5 {[%clk 0:00:18.9]} 43.
Kd3 {[%clk 0:01:40.2]} 43... Bb6 {[%clk 0:00:17.2]} 44. Nfe4 {[%clk 0:01:34]}
44... Nxe4 {[%clk 0:00:17]} 45. Nxe4 {[%clk 0:01:33.8]} 45... Ke5 {[%clk
0:00:16.6]} 46. Ke2 {[%clk 0:01:33.1]} 46... Ba7 {[%clk 0:00:15.6]} 47. Kf1
{[%clk 0:01:33]} 47... Bb6 {[%clk 0:00:15.5]} 48. Kg2 {[%clk 0:01:33.9]} 48...
Ba7 {[%clk 0:00:15.4]} 49. Ng3 {[%clk 0:01:33.3]} 49... Bb6 {[%clk 0:00:14.4]}
50. Nf5 {[%clk 0:01:32.8]} 50... h5 {[%clk 0:00:14.4]} 51. h3 {[%clk 0:01:31.2]}
51... hxg4 {[%clk 0:00:14.4]} 52. fxg4 {[%clk 0:01:31.7]} 52... Ba7 {[%clk
0:00:14.4]} 53. Kf3 {[%clk 0:01:31.7]} 53... Bb6 {[%clk 0:00:14.4]} 54. Ne7
{[%clk 0:01:29.3]} 54... Bc5 {[%clk 0:00:12.4]} 55. Nf5 {[%clk 0:01:27.1]} 55...
Bb6 {[%clk 0:00:11.6]} 56. Ng3 {[%clk 0:01:23.3]} 56... Bc5 {[%clk 0:00:11]} 57.
Ne2 {[%clk 0:01:21.6]} 57... Bb6 {[%clk 0:00:10.9]} 58. Nc1 {[%clk 0:01:20.5]}
58... Ba7 {[%clk 0:00:09.2]} 59. Nd3+ {[%clk 0:01:18.7]} 59... Kd4 {[%clk
0:00:09.3]} 60. Nb4 {[%clk 0:01:16.8]} 60... Bb6 {[%clk 0:00:08.4]} 61. Nc6+
{[%clk 0:01:15]} 61... Kd5 {[%clk 0:00:07.6]} 62. Ne7+ {[%clk 0:01:14]} 62...
Ke6 {[%clk 0:00:06]} 63. Nf5 {[%clk 0:01:14.9]} 63... Ke5 {[%clk 0:00:05.2]}
1/2-1/2

[Event "*** SCC Grand Prix: Titled Tuesday Blitz"]
[Site "Chess.com"]
[Date "2020.10.13"]
[Round "2"]
[White "smshk35"]
[Black "VladaSviridova"]
[Result "1-0"]
[WhiteElo "2468"]
[BlackElo "2248"]
[TimeControl "180+1"]
[EndTime "10:17:32 PDT"]
[Termination "smshk35 won on time"]

1. e4 {[%clk 0:03:00.9]} 1... e6 {[%clk 0:03:00]} 2. d4 {[%clk 0:03:00.5]} 2...
d5 {[%clk 0:03:00.7]} 3. Nd2 {[%clk 0:02:59.5]} 3... c5 {[%clk 0:03:00.3]} 4.
Ngf3 {[%clk 0:02:59.3]} 4... cxd4 {[%clk 0:03:00.4]} 5. Nxd4 {[%clk 0:03:00.2]}
5... Nc6 {[%clk 0:03:00.6]} 6. Bb5 {[%clk 0:03:00.1]} 6... Bd7 {[%clk
0:03:00.8]} 7. Nxc6 {[%clk 0:03:00]} 7... bxc6 {[%clk 0:03:01]} 8. Bd3 {[%clk
0:02:59.9]} 8... Bd6 {[%clk 0:03:01.2]} 9. Qe2 {[%clk 0:02:57.2]} 9... Ne7
{[%clk 0:02:57.7]} 10. Nf3 {[%clk 0:02:53.8]} 10... Ng6 {[%clk 0:02:57.4]} 11.
e5 {[%clk 0:02:51.8]} 11... Bc7 {[%clk 0:02:40.4]} 12. O-O {[%clk 0:02:50.1]}
12... O-O {[%clk 0:02:40.4]} 13. h4 {[%clk 0:02:40.2]} 13... h6 {[%clk
0:01:23.3]} 14. h5 {[%clk 0:02:36.7]} 14... Ne7 {[%clk 0:01:08.3]} 15. c4 {[%clk
0:02:35.5]} 15... c5 {[%clk 0:01:03.7]} 16. b3 {[%clk 0:02:24.8]} 16... Rb8
{[%clk 0:01:01]} 17. Ba3 {[%clk 0:02:24.6]} 17... Bb6 {[%clk 0:00:56.7]} 18. Bc2
{[%clk 0:02:20.8]} 18... d4 {[%clk 0:00:31.2]} 19. Qd3 {[%clk 0:02:16.8]} 19...
g6 {[%clk 0:00:31.3]} 20. hxg6 {[%clk 0:02:01.1]} 20... fxg6 {[%clk 0:00:28.2]}
21. Nh4 {[%clk 0:01:49]} 21... Qe8 {[%clk 0:00:25.5]} 22. b4 {[%clk 0:01:38.2]}
22... Nf5 {[%clk 0:00:17.4]} 23. bxc5 {[%clk 0:01:29.6]} 23... Ba5 {[%clk
0:00:11.5]} 24. c6 {[%clk 0:01:23.4]} 24... Bxc6 {[%clk 0:00:10.5]} 25. Bxf8
{[%clk 0:01:23.3]} 25... Qxf8 {[%clk 0:00:07]} 26. Nxg6 {[%clk 0:01:20.7]} 26...
Qg7 {[%clk 0:00:05.9]} 27. Nf4 {[%clk 0:01:16.9]} 27... Kh7 {[%clk 0:00:04.9]}
28. f3 {[%clk 0:01:12.7]} 28... Re8 {[%clk 0:00:04.3]} 29. Nxe6 {[%clk
0:01:11.3]} 29... Rxe6 {[%clk 0:00:03.6]} 30. Qxf5+ {[%clk 0:01:11.2]} 30... Rg6
{[%clk 0:00:03.8]} 31. Qxg6+ {[%clk 0:01:04.1]} 31... Qxg6 {[%clk 0:00:03.8]}
32. Bxg6+ {[%clk 0:01:04.2]} 32... Kxg6 {[%clk 0:00:04.7]} 33. Rfd1 {[%clk
0:01:01.7]} 33... Bc3 {[%clk 0:00:05]} 34. Rac1 {[%clk 0:01:01.3]} 34... Ba4
{[%clk 0:00:05.6]} 35. Rxc3 {[%clk 0:01:00.1]} 35... dxc3 {[%clk 0:00:06.5]} 36.
Rc1 {[%clk 0:01:00.1]} 36... c2 {[%clk 0:00:06.7]} 37. f4 {[%clk 0:00:58.7]}
37... Kf5 {[%clk 0:00:07]} 38. Kf2 {[%clk 0:00:58.7]} 38... Kxf4 {[%clk
0:00:07.2]} 39. e6 {[%clk 0:00:59.2]} 39... Ke5 {[%clk 0:00:07.6]} 40. e7 {[%clk
0:00:59.5]} 40... Kd4 {[%clk 0:00:07.6]} 41. e8=Q {[%clk 0:00:59.9]} 41... Bxe8
{[%clk 0:00:07.6]} 42. Rxc2 {[%clk 0:01:00.3]} 42... Ba4 {[%clk 0:00:07.8]} 43.
Rc1 {[%clk 0:01:00.6]} 43... Kd3 {[%clk 0:00:07.7]} 44. c5 {[%clk 0:01:01.1]}
44... Bc6 {[%clk 0:00:07.7]} 45. Rd1+ {[%clk 0:01:00.3]} 45... Kc4 {[%clk
0:00:07.3]} 46. Rd6 {[%clk 0:01:01.2]} 46... Kxc5 {[%clk 0:00:06.7]} 47. Rxh6
{[%clk 0:01:01.2]} 47... a5 {[%clk 0:00:06.2]} 48. Rh5+ {[%clk 0:01:00]} 48...
Kb4 {[%clk 0:00:05.7]} 49. a3+ {[%clk 0:00:59]} 49... Ka4 {[%clk 0:00:04.4]} 50.
g4 {[%clk 0:00:58.7]} 50... Bb5 {[%clk 0:00:04.2]} 51. Re5 {[%clk 0:00:56.6]}
51... Bc4 {[%clk 0:00:03.6]} 52. g5 {[%clk 0:00:56.8]} 52... Bd3 {[%clk
0:00:03.8]} 53. Ke3 {[%clk 0:00:55.7]} 53... Bc2 {[%clk 0:00:03.7]} 54. Kf4
{[%clk 0:00:55.1]} 54... Bb1 {[%clk 0:00:02.1]} 55. Rc5 {[%clk 0:00:55.1]} 55...
Bg6 {[%clk 0:00:01]} 56. Ke5 {[%clk 0:00:55.1]} 1-0